fUST/lending_fUST_20241106
["ID","MTS","AMOUNT","RATE_DAILY","PERIOD"]
[341416343,1730868651384,-500.0,0.00038356,14]
[341416344,1730868651393,-500.0,0.00038356,14]
[341416345,1730868651402,-500.0,0.00038356,2]
[341416346,1730868651412,-500.0,0.00038356,14]
[341416347,1730868651421,-500.0,0.00038356,14]
[341416348,1730868651431,-500.0,0.00038356,14]
[341416349,1730868651441,-517.5717839,0.00038356,14]
[341416350,1730868651451,-500.0,0.00038356,2]
[341416351,1730868651462,-500.0,0.00038356,14]
[341416352,1730868651472,-505.42513784,0.00038356,14]
[341416353,1730868651482,-500.0,0.00038356,14]
[341416354,1730868651494,-500.0,0.00038356,14]
[341416355,1730868651506,-502.70236609,0.00038356,14]
[341416356,1730868651518,-506.67057911,0.00038356,14]
[341416357,1730868651529,-500.0,0.00038356,14]
[341416358,1730868651539,-505.4423183,0.00038356,14]
[341416359,1730868651548,-503.26182047,0.00038356,14]
[341416360,1730868651558,-500.0,0.00038356,14]
[341416361,1730868651569,-202.51353327,0.00038356,14]
[341416362,1730868651579,-500.0,0.00038356,14]
[341416363,1730868651593,-503.4977175,0.00038356,14]
[341416364,1730868651603,-500.0,0.00038356,14]
[341416365,1730868651673,-500.0,0.00038356,14]
[341416366,1730868651683,-500.0,0.00038356,14]
[341416367,1730868651692,-500.0,0.00038356,14]
[341416368,1730868651702,-504.50821829,0.00038356,14]
[341416369,1730868651711,-503.08744073,0.00038356,14]
[341416370,1730868651721,-500.0,0.00038356,14]
[341416371,1730868651731,-500.0,0.00038356,14]
[341416372,1730868651741,-500.0,0.00038356,14]
[341416373,1730868651751,-500.0,0.00038356,14]
[341416374,1730868651760,-500.0,0.00038356,14]
[341416375,1730868651782,-509.82009858,0.00038356,14]
[341416376,1730868651793,-500.0,0.00038356,14]
[341416377,1730868651804,-500.0,0.00038356,14]
[341416378,1730868651815,-569.43508865,0.00038356,14]
[341416379,1730868651826,-502.93759906,0.00038356,14]
[341416380,1730868651838,-500.0,0.00038356,14]
[341416381,1730868651848,-211.93746389,0.00038356,14]
[341416382,1730868651858,-500.0,0.00038356,14]
[341416383,1730868651868,-500.0,0.00038356,14]
[341416384,1730868651878,-500.0,0.00038356,14]
[341416385,1730868651889,-500.0,0.00038356,14]
[341416386,1730868651898,-500.0,0.00038356,14]
[341416387,1730868651908,-500.0,0.00038356,14]
[341416388,1730868651918,-406.89672757,0.00038356,14]
[341416389,1730868651928,-500.0,0.00038356,14]
[341416390,1730868651938,-230.39125962,0.00038356,14]
[341416391,1730868651948,-543.30655089,0.00038356,14]
[341416392,1730868651958,-508.31255013,0.00038356,14]
[341416393,1730868651968,-500.0,0.00038356,14]
[341416394,1730868651978,-525.94504674,0.00038356,14]
[341416395,1730868651988,-515.13987861,0.00038356,14]
[341416396,1730868651997,-500.0,0.00038356,14]
[341416397,1730868652007,-500.0,0.00038356,14]
[341416398,1730868652017,-500.0,0.00038356,14]
[341416399,1730868652026,-500.0,0.00038356,14]
[341416400,1730868652035,-500.0,0.00038356,14]
[341416401,1730868652045,-500.0,0.00038356,14]
[341416402,1730868652054,-500.0,0.00038356,14]
[341416403,1730868652064,-525.67072245,0.00038356,14]
[341416404,1730868652073,-511.10648132,0.00038356,14]
[341416405,1730868652082,-500.0,0.00038356,14]
[341416406,1730868652093,-1000.0,0.00038356,14]
[341416407,1730868652104,-509.44232501,0.00038356,14]
[341416408,1730868652114,-513.70730286,0.00038356,14]
[341416409,1730868652123,-500.0,0.00038356,14]
[341416410,1730868652134,-500.0,0.00038356,14]
[341416411,1730868652143,-500.0,0.00038356,14]
[341416412,1730868652153,-500.0,0.00038356,14]
[341416413,1730868652163,-500.0,0.00038356,14]
[341416414,1730868652173,-508.12782796,0.00038356,14]
[341416415,1730868652182,-500.0,0.00038356,14]
[341416416,1730868652192,-502.31771337,0.00038356,14]
[341416417,1730868652201,-500.0,0.00038356,14]
[341416418,1730868652210,-500.0,0.00038356,14]
[341416419,1730868652219,-904.06,0.00038356,14]
[341416420,1730868652229,-500.0,0.00038356,14]
[341416421,1730868652238,-503.30271603,0.00038356,14]
[341416422,1730868652247,-500.0,0.00038356,14]
[341416423,1730868652258,-500.0,0.00038356,14]
[341416424,1730868652268,-500.0,0.00038356,14]
[341416425,1730868652277,-500.0,0.00038356,14]
[341416426,1730868652287,-500.0,0.00038356,14]
[341416427,1730868652298,-500.0,0.00038356,14]
[341416428,1730868652308,-500.0,0.00038356,2]
[341416429,1730868652318,-500.0,0.00038356,14]
[341416430,1730868652329,-500.0,0.00038356,14]
[341416431,1730868652343,-500.0,0.00038356,14]
[341416432,1730868652354,-501.89028417,0.00038356,10]
[341416433,1730868652363,-500.0,0.00038356,14]
[341416434,1730868652372,-500.0,0.00038356,14]
[341416435,1730868652385,-500.0,0.00038356,14]
[341416436,1730868652395,-500.40097656,0.00038356,14]
[341416437,1730868652404,-340.61858136,0.00038356,14]
[341416438,1730868652413,-528.6854247,0.00038356,14]
[341416439,1730868652423,-500.0,0.00038356,14]
[341416440,1730868652432,-502.53778312,0.00038356,14]
[341416441,1730868652441,-500.0,0.00038356,14]
[341416442,1730868652451,-500.0,0.00038356,14]
[341416443,1730868652461,-500.0,0.00038356,14]
[341416444,1730868652470,-500.0,0.00038356,14]
[341416445,1730868652480,-499.19005788,0.00038356,14]
[341416446,1730868652490,-509.72652579,0.00038356,14]
[341416447,1730868652505,-500.0,0.00038356,14]
[341416448,1730868652517,-500.0,0.00038356,14]
[341416449,1730868652527,-504.28550309,0.00038356,14]
[341416450,1730868652537,-500.0,0.00038356,120]
[341416451,1730868652548,-500.0,0.00038356,14]
[341416452,1730868652558,-500.0,0.00038356,14]
[341416453,1730868652568,-500.0,0.00038356,14]
[341416454,1730868652577,-500.0,0.00038356,14]
[341416455,1730868652589,-500.0,0.00038356,14]
[341416456,1730868652599,-500.0,0.00038356,14]
[341416457,1730868652610,-500.0,0.00038356,14]
[341416458,1730868652620,-500.0,0.00038356,14]
[341416459,1730868652630,-500.0,0.00038356,14]
[341416460,1730868652640,-500.0,0.00038356,14]
[341416461,1730868652650,-500.0,0.00038356,14]
[341416462,1730868652662,-500.0,0.00038356,14]
[341416463,1730868652672,-500.0,0.00038356,14]
[341416464,1730868652683,-507.08468883,0.00038356,14]
[341416465,1730868652693,-500.0,0.00038356,14]
[341416466,1730868652702,-500.0,0.00038356,14]
[341416467,1730868652712,-502.50738637,0.00038356,14]
[341416468,1730868652723,-500.0,0.00038356,14]
[341416469,1730868652734,-519.03207442,0.00038356,14]
[341416470,1730868652744,-500.0,0.00038356,14]
[341416471,1730868652754,-501.58872248,0.00038356,14]
[341416472,1730868652763,-500.0,0.00038356,14]
[341416473,1730868652772,-500.0,0.00038356,14]
[341416474,1730868652782,-500.0,0.00038356,14]
[341416475,1730868652792,-506.85205939,0.00038356,14]
[341416476,1730868652801,-500.0,0.00038356,14]
[341416477,1730868652812,-500.0,0.00038356,14]
[341416478,1730868652821,-773.63,0.00038356,14]
[341416479,1730868652834,-451.79281238,0.00038356,14]
[341416480,1730868652845,-500.00000002,0.00038356,14]
[341416481,1730868652855,-481.13210255,0.00038356,14]
[341416482,1730868652864,-500.0,0.00038356,14]
[341416483,1730868652874,-500.0,0.00038356,14]
[341416484,1730868652884,-500.0,0.00038356,14]
[341416485,1730868652894,-500.0,0.00038356,14]
[341416486,1730868652903,-823.92,0.00038356,14]
[341416487,1730868652913,-500.0,0.00038356,14]
[341416488,1730868652923,-500.0,0.00038356,14]
[341416489,1730868652933,-506.92733329,0.00038356,14]
[341416490,1730868652943,-500.0,0.00038356,14]
[341416491,1730868652953,-500.0,0.00038356,14]
[341416492,1730868652962,-506.05743233,0.00038356,14]
[341416493,1730868652974,-500.0,0.00038356,14]
[341416494,1730868652984,-500.0,0.00038356,14]
[341416495,1730868652994,-507.06400913,0.00038356,14]
[341416496,1730868653004,-500.0,0.00038356,14]
[341416497,1730868653015,-626.08409461,0.00038356,14]
[341416498,1730868653025,-500.0,0.00038356,14]
[341416499,1730868653036,-500.0,0.00038356,14]
[341416500,1730868653048,-500.0,0.00038356,14]
[341416501,1730868653057,-500.0,0.00038356,14]
[341416502,1730868653067,-500.0,0.00038356,14]
[341416503,1730868653076,-500.0,0.00038356,14]
[341416504,1730868653168,-500.0,0.00038356,14]
[341416505,1730868653178,-500.0,0.00038356,14]
[341416506,1730868653188,-500.0,0.00038356,14]
[341416507,1730868653198,-500.0,0.00038356,14]
[341416508,1730868653207,-500.0,0.00038356,14]
[341416509,1730868653217,-500.0,0.00038356,14]
[341416510,1730868653226,-500.0,0.00038356,14]
[341416511,1730868653236,-500.0,0.00038356,14]
[341416512,1730868653246,-500.0,0.00038356,14]
[341416513,1730868653256,-500.0,0.00038356,14]
[341416514,1730868653266,-500.0,0.00038356,14]
[341416515,1730868653276,-500.0,0.00038356,14]
[341416516,1730868653286,-500.0,0.00038356,14]
[341416517,1730868653295,-500.0,0.00038356,14]
[341416518,1730868653306,-500.0,0.00038356,14]
[341416519,1730868653316,-500.0,0.00038356,14]
[341416520,1730868653325,-500.0,0.00038356,14]
[341416521,1730868653334,-500.0,0.00038356,14]
[341416522,1730868653345,-500.0,0.00038356,14]
[341416523,1730868653355,-500.0,0.00038356,14]
[341416524,1730868653364,-500.0,0.00038356,14]
[341416525,1730868653373,-500.0,0.00038356,14]
[341416526,1730868653383,-512.44282266,0.00038356,14]
[341416527,1730868653392,-500.0,0.00038356,14]
[341416528,1730868653401,-500.0,0.00038356,14]
[341416529,1730868653411,-500.0,0.00038356,14]
[341416530,1730868653420,-500.0,0.00038356,14]
[341416531,1730868653429,-500.0,0.00038356,14]
[341416532,1730868653439,-500.0,0.00038356,14]
[341416533,1730868653448,-543.51,0.00038356,14]
[341416534,1730868653457,-500.0,0.00038356,14]
[341416535,1730868653467,-500.0,0.00038356,14]
[341416536,1730868653476,-504.19628341,0.00038356,14]
[341416537,1730868653486,-500.0,0.00038356,14]
[341416538,1730868653496,-506.42519964,0.00038356,14]
[341416539,1730868653506,-510.78095109,0.00038356,14]
[341416540,1730868653518,-507.91583878,0.00038356,14]
[341416541,1730868653528,-500.0,0.00038356,14]
[341416542,1730868653538,-500.0,0.00038356,14]
[341416543,1730868653548,-2798.29,0.00038356,14]
[341416544,1730868653557,-500.0,0.00038356,14]
[341416545,1730868653566,-500.0,0.00038356,14]
[341416546,1730868653576,-500.0,0.00038356,14]
[341416547,1730868653587,-500.0,0.00038356,14]
[341416548,1730868653599,-200.0,0.00038356,7]
[341416549,1730868653609,-500.0,0.00038356,14]
[341416550,1730868653618,-500.0,0.00038356,14]
[341416551,1730868653627,-500.0,0.00038356,14]
[341416552,1730868653637,-500.0,0.00038356,14]
[341416553,1730868653646,-500.0,0.00038356,14]
[341416554,1730868653656,-500.0,0.00038356,14]
[341416555,1730868653665,-500.0,0.00038356,14]
[341416556,1730868653674,-500.0,0.00038356,14]
[341416557,1730868653683,-500.0,0.00038356,14]
[341416558,1730868653693,-508.95770234,0.00038356,14]
[341416559,1730868653713,-500.0,0.00038356,14]
[341416560,1730868653724,-500.0,0.00038356,14]
[341416561,1730868653734,-500.0,0.00038356,14]
[341416562,1730868653744,-228.50095567,0.00038356,14]
[341416563,1730868653754,-715.45,0.00038356,14]
[341416564,1730868653763,-500.0,0.00038356,14]
[341416565,1730868653773,-500.0,0.00038356,14]
[341416566,1730868653783,-500.0,0.00038356,14]
[341416567,1730868653794,-656.66,0.00038356,14]
[341416568,1730868653803,-1876.5,0.00038356,14]
[341416569,1730868653813,-1876.5,0.00038356,14]
[341416570,1730868653822,-1876.5,0.00038356,14]
[341416571,1730868653832,-1876.5,0.00038356,14]
[341416572,1730868653843,-1876.5,0.00038356,14]
[341416573,1730868653853,-1876.5,0.00038356,14]
[341416574,1730868653862,-1876.5,0.00038356,14]
[341416575,1730868653872,-500.0,0.00038356,14]
[341416576,1730868653881,-1876.5,0.00038356,14]
[341416577,1730868653891,-1876.5,0.00038356,14]
[341416578,1730868653901,-500.0,0.00038356,14]
[341416579,1730868653912,-1876.5,0.00038356,14]
[341416580,1730868653922,-1876.5,0.00038356,14]
[341416581,1730868653931,-1876.5,0.00038356,14]
[341416582,1730868653941,-500.0,0.00038356,14]
[341416583,1730868653951,-1876.5,0.00038356,14]
[341416584,1730868653960,-1876.5,0.00038356,14]
[341416585,1730868653971,-1876.5,0.00038356,14]
[341416586,1730868653982,-1876.5,0.00038356,14]
[341416587,1730868653991,-1876.5,0.00038356,14]
[341416588,1730868654001,-1876.5,0.00038356,14]
[341416589,1730868654010,-1876.5,0.00038356,14]
[341416590,1730868654021,-1876.5,0.00038356,14]
[341416591,1730868654031,-1876.5,0.00038356,14]
[341416592,1730868654040,-1876.5,0.00038356,14]
[341416593,1730868654051,-1876.5,0.00038356,14]
[341416594,1730868654061,-500.0,0.00038356,14]
[341416595,1730868654070,-1876.51522315,0.00038356,14]
[341416596,1730868654080,-500.0,0.00038356,14]
[341416597,1730868654091,-500.0,0.00038356,14]
[341416598,1730868654101,-500.0,0.00038356,14]
[341416599,1730868654111,-500.0,0.00038356,14]
[341416600,1730868654121,-500.0,0.00038356,14]
[341416601,1730868654134,-500.0,0.00038356,14]
[341416602,1730868654144,-500.0,0.00038356,14]
[341416603,1730868654154,-500.0,0.00038356,14]
[341416604,1730868654165,-500.0,0.00038356,14]
[341416605,1730868654175,-502.74333685,0.00038356,14]
[341416606,1730868654186,-279.46743732,0.00038356,14]
[341416607,1730868654197,-500.0,0.00038356,14]
[341416608,1730868654208,-500.0,0.00038356,14]
[341416609,1730868654217,-1000.0,0.00038356,14]
[341416610,1730868654226,-500.0,0.00038356,14]
[341416611,1730868654236,-500.0,0.00038356,14]
[341416612,1730868654245,-227.65758822,0.00038356,14]
[341416613,1730868654254,-500.0,0.00038356,14]
[341416614,1730868654264,-531.9114368,0.00038356,14]
[341416615,1730868654273,-500.0,0.00038356,14]
[341416616,1730868654283,-500.0,0.00038356,14]
[341416617,1730868654292,-500.0,0.00038356,14]
[341416618,1730868654302,-500.0,0.00038356,14]
[341416619,1730868654311,-500.0,0.00038356,14]
[341416620,1730868654320,-500.0,0.00038356,14]
[341416621,1730868654330,-500.0,0.00038356,14]
[341416622,1730868654341,-167.64964949,0.00038356,14]
[341416623,1730868654351,-500.0,0.00038356,14]
[341416624,1730868654360,-500.0,0.00038356,14]
[341416625,1730868654370,-500.0,0.00038356,14]
[341416626,1730868654380,-500.0,0.00038356,14]
[341416627,1730868654390,-501.47121442,0.00038356,14]
[341416628,1730868654399,-565.37235768,0.00038356,14]
[341416629,1730868654408,-500.0,0.00038356,14]
[341416630,1730868654418,-500.0,0.00038356,14]
[341416631,1730868654428,-500.0,0.00038356,14]
[341416632,1730868654516,-500.0,0.00038356,14]
[341416633,1730868654526,-500.0,0.00038356,14]
[341416634,1730868654536,-1006.68,0.00038356,14]
[341416635,1730868654546,-500.0,0.00038356,14]
[341416636,1730868654556,-500.0,0.00038356,14]
[341416637,1730868654565,-485.91709797,0.00038356,14]
[341416638,1730868654574,-501.18831241,0.00038356,14]
[341416639,1730868654584,-523.99589655,0.00038356,14]
[341416640,1730868654596,-500.0,0.00038356,14]
[341416641,1730868654605,-500.0,0.00038356,14]
[341416642,1730868654614,-500.0,0.00038356,14]
[341416643,1730868654624,-500.0,0.00038356,14]
[341416644,1730868654633,-500.0,0.00038356,14]
[341416645,1730868654642,-500.0,0.00038356,14]
[341416646,1730868654651,-500.0,0.00038356,14]
[341416647,1730868654661,-500.0,0.00038356,14]
[341416648,1730868654670,-451.16927745,0.00038356,14]
[341416649,1730868654679,-504.95162714,0.00038356,14]
[341416650,1730868654688,-500.0,0.00038356,14]
[341416651,1730868654698,-510.50853721,0.00038356,14]
[341416652,1730868654707,-659.12,0.00038356,14]
[341416653,1730868654716,-500.0,0.00038356,14]
[341416654,1730868654725,-1141.98,0.00038356,14]
[341416655,1730868654739,-500.0,0.00038356,14]
[341416656,1730868654749,-505.27227109,0.00038356,14]
[341416657,1730868654758,-501.27865855,0.00038356,14]
[341416658,1730868654769,-867.45,0.00038356,14]
[341416659,1730868654779,-285.98888391,0.00038356,14]
[341416660,1730868654790,-1000.0,0.00038356,116]
[341416661,1730868654801,-500.0,0.00038356,14]
[341416662,1730868654811,-500.0,0.00038356,14]
[341416663,1730868654821,-500.0,0.00038356,14]
[341416664,1730868654830,-500.0,0.00038356,14]
[341416665,1730868654840,-498.37074583,0.00038356,14]
[341416666,1730868654849,-500.0,0.00038356,14]
[341416667,1730868654859,-500.0,0.00038356,14]
[341416668,1730868654869,-939.45,0.00038356,14]
[341416669,1730868654879,-500.0,0.00038356,14]
[341416670,1730868654888,-500.0,0.00038356,14]
[341416671,1730868654898,-500.0,0.00038356,14]
[341416672,1730868654907,-506.78812792,0.00038356,14]
[341416673,1730868654917,-500.0,0.00038356,14]
[341416674,1730868654926,-500.0,0.00038356,14]
[341416675,1730868654936,-8657.6,0.00038356,14]
[341416676,1730868654945,-500.0,0.00038356,14]
[341416677,1730868654955,-501.63569097,0.00038356,14]
[341416678,1730868654967,-500.0,0.00038356,14]
[341416679,1730868654977,-500.0,0.00038356,14]
[341416680,1730868654986,-500.0,0.00038356,14]
[341416681,1730868654995,-500.0,0.00038356,14]
[341416682,1730868655005,-500.0,0.00038356,14]
[341416683,1730868655015,-500.0,0.00038356,14]
[341416684,1730868655025,-500.0,0.00038356,14]
[341416685,1730868655035,-500.0,0.00038356,14]
[341416686,1730868655045,-500.0,0.00038356,14]
[341416687,1730868655054,-506.67050815,0.00038356,14]
[341416688,1730868655064,-500.0,0.00038356,14]
[341416689,1730868655073,-500.0,0.00038356,14]
[341416690,1730868655082,-500.0,0.00038356,14]
[341416691,1730868655093,-500.0,0.00038356,14]
[341416692,1730868655102,-500.0,0.00038356,7]
[341416693,1730868655112,-500.0,0.00038356,14]
[341416694,1730868655123,-500.0,0.00038356,14]
[341416695,1730868655134,-500.0,0.00038356,14]
[341416696,1730868655147,-500.0,0.00038356,14]
[341416697,1730868655158,-3162.9,0.00038356,14]
[341416698,1730868655168,-500.0,0.00038356,14]
[341416699,1730868655179,-500.0,0.00038356,14]
[341416700,1730868655190,-500.0,0.00038356,14]
[341416701,1730868655200,-500.0,0.00038356,14]
[341416702,1730868655210,-500.0,0.00038356,14]
[341416703,1730868655220,-242.06229866,0.00038356,14]
[341416704,1730868655231,-500.0,0.00038356,14]
[341416705,1730868655242,-500.0,0.00038356,14]
[341416706,1730868655252,-500.0,0.00038356,14]
[341416707,1730868655262,-511.13073886,0.00038356,14]
[341416708,1730868655271,-500.0,0.00038356,14]
[341416709,1730868655281,-500.0,0.00038356,14]
[341416710,1730868655291,-500.0,0.00038356,14]
[341416711,1730868655300,-500.0,0.00038356,14]
[341416712,1730868655309,-500.0,0.00038356,14]
[341416713,1730868655318,-501.3173271,0.00038356,14]
[341416714,1730868655327,-500.0,0.00038356,14]
[341416715,1730868655336,-500.0,0.00038356,14]
[341416716,1730868655349,-500.0,0.00038356,14]
[341416717,1730868655363,-511.15900662,0.00038356,14]
[341416718,1730868655373,-500.0,0.00038356,14]
[341416719,1730868655382,-500.0,0.00038356,14]
[341416720,1730868655391,-500.0,0.00038356,14]
[341416721,1730868655400,-500.0,0.00038356,14]
[341416722,1730868655409,-500.0,0.00038356,14]
[341416723,1730868655418,-2538.96,0.00038356,14]
[341416724,1730868655427,-506.11594152,0.00038356,14]
[341416725,1730868655437,-500.0,0.00038356,14]
[341416726,1730868655446,-520.5906777,0.00038356,14]
[341416727,1730868655455,-500.0,0.00038356,14]
[341416728,1730868655464,-500.0,0.00038356,14]
[341416729,1730868655474,-500.0,0.00038356,14]
[341416730,1730868655483,-500.0,0.00038356,14]
[341416731,1730868655492,-500.0,0.00038356,14]
[341416732,1730868655504,-500.0,0.00038356,14]
[341416733,1730868655515,-500.0,0.00038356,14]
[341416734,1730868655525,-500.0,0.00038356,14]
[341416735,1730868655535,-500.0,0.00038356,14]
[341416736,1730868655545,-500.0,0.00038356,14]
[341416737,1730868655555,-500.0,0.00038356,14]
[341416738,1730868655564,-500.0,0.00038356,14]
[341416739,1730868655574,-502.84705215,0.00038356,14]
[341416740,1730868655584,-501.86410525,0.00038356,14]
[341416741,1730868655593,-500.0,0.00038356,14]
[341416742,1730868655603,-500.0,0.00038356,14]
[341416743,1730868655613,-500.0,0.00038356,14]
[341416744,1730868655622,-500.0,0.00038356,14]
[341416745,1730868655631,-500.0,0.00038356,14]
[341416746,1730868655641,-522.00715537,0.00038356,14]
[341416747,1730868655651,-500.0,0.00038356,14]
[341416748,1730868655660,-500.0,0.00038356,14]
[341416749,1730868655721,-500.0,0.00038356,14]
[341416750,1730868655731,-511.50251794,0.00038356,14]
[341416751,1730868655741,-500.0,0.00038356,14]
[341416752,1730868655750,-500.0,0.00038356,14]
[341416753,1730868655760,-535.88273947,0.00038356,14]
[341416754,1730868655769,-500.0,0.00038356,14]
[341416755,1730868655779,-500.0,0.00038356,14]
[341416756,1730868655789,-500.0,0.00038356,14]
[341416757,1730868655798,-9532.68,0.00038356,14]
[341416758,1730868655808,-500.0,0.00038356,14]
[341416759,1730868655817,-7389.67,0.00038356,14]
[341416760,1730868655827,-500.0,0.00038356,14]
[341416761,1730868655836,-500.0,0.00038356,14]
[341416762,1730868655847,-611.89905242,0.00038356,14]
[341416763,1730868655857,-501.67545523,0.00038356,14]
[341416764,1730868655866,-500.0,0.00038356,14]
[341416765,1730868655876,-210.95537108,0.00038356,14]
[341416766,1730868655885,-500.0,0.00038356,14]
[341416767,1730868655895,-509.3814718,0.00038356,14]
[341416768,1730868655904,-500.0,0.00038356,14]
[341416769,1730868655914,-500.0,0.00038356,14]
[341416770,1730868655924,-501.86622924,0.00038356,14]
[341416771,1730868655933,-500.0,0.00038356,14]
[341416772,1730868655942,-500.0,0.00038356,14]
[341416773,1730868655951,-500.0,0.00038356,14]
[341416774,1730868655960,-500.0,0.00038356,14]
[341416775,1730868655970,-500.0,0.00038356,14]
[341416776,1730868655980,-504.89779012,0.00038356,14]
[341416777,1730868655989,-500.0,0.00038356,14]
[341416778,1730868655999,-615.36,0.00038356,14]
[341416779,1730868656008,-265.644453,0.00038356,120]
[341416780,1730868656018,-150.5,0.0003858,120]
[341416781,1730868656027,-150.5,0.0003859,120]
[341416782,1730868656036,-173.75239579,0.00038629,30]
[341416783,1730868656046,-151.0,0.0003863,14]
[341416784,1730868656055,-151.0,0.0003863,14]
[341416785,1730868656065,-151.0,0.0003863,14]
[341416786,1730868656074,-209.2169736,0.0003863,14]
[341416787,1730868656083,-500.0,0.0003863,14]
[341416788,1730868656095,-500.0,0.0003863,14]
[341416789,1730868656105,-500.0,0.0003863,14]
[341416790,1730868656114,-520.63460532,0.0003863,14]
[341416791,1730868656123,-500.0,0.0003863,14]
[341416792,1730868656132,-500.0,0.0003863,14]
[341416793,1730868656142,-500.0,0.0003863,14]
[341416794,1730868656152,-500.0,0.0003863,14]
[341416795,1730868656161,-500.0,0.0003863,14]
[341416796,1730868656170,-500.0,0.0003863,14]
[341416797,1730868656179,-500.0,0.0003863,14]
[341416798,1730868656189,-503.35384498,0.0003863,14]
[341416799,1730868656198,-526.20902311,0.0003863,14]
[341416800,1730868656207,-500.0,0.0003863,14]
[341416801,1730868656217,-513.85322111,0.0003863,14]
[341416802,1730868656226,-626.34152905,0.0003863,14]
[341416803,1730868656235,-510.15710265,0.0003863,14]
[341416804,1730868656244,-521.57868689,0.0003863,14]
[341416805,1730868656254,-500.0,0.0003863,14]
[341416806,1730868656263,-578.89119802,0.0003863,14]
[341416807,1730868656272,-500.0,0.0003863,14]
[341416808,1730868656281,-552.31795147,0.0003863,14]
[341416809,1730868656290,-500.0,0.0003863,14]
[341416810,1730868656299,-534.03682469,0.0003863,14]
[341416811,1730868656308,-403.54388428,0.0003863,14]
[341416812,1730868656317,-500.0,0.0003863,14]
[341416813,1730868656327,-712.06489221,0.0003863,30]
[341416814,1730868656335,-509.42240507,0.0003863,14]
[341416815,1730868656346,-550.9943595,0.0003863,14]
[341416816,1730868656355,-500.0,0.0003863,14]
[341416817,1730868656364,-500.0,0.0003863,14]
[341416818,1730868656373,-500.0,0.0003863,14]
[341416819,1730868656383,-504.75796811,0.0003863,14]
[341416820,1730868656392,-500.0,0.0003863,14]
[341416821,1730868656401,-500.0,0.0003863,14]
[341416822,1730868656410,-505.00236432,0.0003863,14]
[341416823,1730868656419,-639.90433446,0.0003863,14]
[341416824,1730868656429,-511.83407456,0.0003863,14]
[341416825,1730868656439,-500.0,0.0003863,14]
[341416826,1730868656449,-503.77198728,0.0003863,14]
[341416827,1730868656458,-500.0,0.0003863,14]
[341416828,1730868656467,-500.0,0.0003863,14]
[341416829,1730868656476,-224.31482418,0.0003863,14]
[341416830,1730868656485,-500.0,0.0003863,14]
[341416831,1730868656494,-288.45194175,0.0003863,14]
[341416832,1730868656507,-500.0,0.0003863,14]
[341416833,1730868656518,-500.0,0.0003863,14]
[341416834,1730868656527,-505.50520827,0.0003863,14]
[341416835,1730868656537,-500.0,0.0003863,14]
[341416836,1730868656546,-506.29435481,0.0003863,14]
[341416837,1730868656557,-500.0,0.0003863,14]
[341416838,1730868656566,-500.0,0.0003863,14]
[341416839,1730868656575,-501.96259513,0.0003863,14]
[341416840,1730868656585,-341.20643542,0.0003863,14]
[341416841,1730868656596,-500.0,0.0003863,14]
[341416842,1730868656605,-500.0,0.0003863,14]